bitfinex-derivatives/quotes_BNBF0:USTF0_20250529
["timestamp","ask_amount","ask_price","bid_price","bid_amount"]
[1748495550161,0.29325083,682.01,681.64,0.55704855]
[1748495550361,0.29325083,682.01,681.65,0.55704855]
[1748495550565,0.29325083,682.01,681.66,0.55704855]
[1748495550761,0.29325083,682.01,681.67,0.55704855]
[1748495550961,0.29325083,682.01,681.68,0.55704855]
[1748495551164,0.29325083,682.01,681.69,0.55704855]
[1748495551359,0.29325083,682.01,681.7,0.55704855]
[1748495551663,0.29325083,682.01,681.71,0.55704855]
[1748495551963,0.29325083,682.01,681.72,0.55704855]
[1748495552163,0.29325083,682.01,681.73,0.55733909]
[1748495552365,0.29325083,682.01,681.74,0.55733909]
[1748495552659,0.29325083,682.01,681.75,0.55739817]
[1748495552964,0.29325083,682.01,681.76,0.55739817]
[1748495553164,0.29325083,682.01,681.77,0.55739817]
[1748495553364,0.29325083,682.01,681.78,0.55744915]
[1748495553562,0.29325083,682.01,681.79,0.55744911]
[1748495553758,0.29325083,682.01,681.8,0.55744911]
[1748495553960,0.29325083,682.01,681.81,0.55744911]
[1748495554160,0.29325083,682.01,681.82,0.55744911]
[1748495554463,0.29325083,682.01,681.83,0.55744911]
[1748495554660,0.29325083,682.01,681.84,0.55752015]
[1748495554965,0.29325083,682.01,681.63,0.496]
[1748495554966,0.29325083,682.01,681.85,0.55753535]
[1748495555165,0.29325083,682.01,681.86,0.55753535]
[1748495555365,0.29325083,682.01,681.87,0.55753535]
[1748495555560,0.29325083,682.01,681.88,0.55753535]
[1748495555765,0.29325083,682.01,681.89,0.55753535]
[1748495555967,0.29325083,682.01,681.9,0.55753535]
[1748495556268,0.29325083,682.01,681.91,0.55753535]
[1748495556463,0.29325083,682.01,681.92,0.55753535]
[1748495556666,0.29325083,682.01,681.93,0.55753535]
[1748495556966,0.29325083,682.01,681.94,0.55753535]
[1748495557163,0.29325083,682.01,681.95,0.55753535]
[1748495557366,0.29325083,682.01,681.96,0.55768629]
[1748495557565,0.29325083,682.01,681.97,0.55768629]
[1748495557767,0.29325083,682.01,681.98,0.55768629]
[1748495558068,0.29325083,682.01,681.99,0.55768629]
[1748495558367,0.29325083,682.01,682.0,0.55770209]
[1748495559164,0.29325083,682.01,682.0,0.55777649]
[1748495559464,0.29325083,682.01,681.64,0.55783554]
[1748495559663,0.29325083,682.01,681.63,0.496]
[1748495559664,0.29325083,682.01,681.65,0.55783554]
[1748495559864,0.29325083,682.01,681.66,0.55783554]
[1748495560067,0.29325083,682.01,681.67,0.55785337]
[1748495560269,0.29325083,682.01,681.68,0.55785337]
[1748495560469,0.29325083,682.01,681.63,0.496]
[1748495560671,0.29325083,682.01,681.64,0.55794268]
[1748495560866,0.29325083,682.01,681.65,0.55794268]
[1748495561169,0.29325083,682.01,681.66,0.55794268]
[1748495561371,0.29325083,682.01,681.67,0.55794268]
[1748495561564,0.29325083,682.01,681.68,0.55794268]
[1748495561765,0.29325083,682.01,681.69,0.55794268]
[1748495561966,0.29325083,682.01,681.7,0.55794268]
[1748495562165,0.29325083,682.01,681.71,0.55794268]
[1748495562371,0.29325083,682.01,681.63,0.496]
[1748495562771,0.29325083,682.01,681.64,0.55817632]
[1748495562971,0.29325083,682.01,681.65,0.55817632]
[1748495563172,0.29325083,682.01,681.66,0.55817632]
[1748495563386,0.29325083,682.01,681.67,0.55817632]
[1748495563569,0.29325083,682.01,681.68,0.55832163]
[1748495563769,0.29325083,682.01,681.69,0.55832163]
[1748495563969,0.29325083,682.01,681.7,0.55832163]
[1748495564170,0.29325083,682.01,681.63,0.496]
[1748495564171,0.29325083,682.01,681.71,0.55832508]
[1748495564368,0.29325083,682.01,681.72,0.55832508]
[1748495564668,0.29325083,682.01,681.73,0.55832508]
[1748495564971,0.29325083,682.01,681.74,0.5584289]
[1748495565168,0.29325083,682.01,681.75,0.5584289]
[1748495565370,0.29325083,682.01,681.76,0.5584289]
[1748495565571,0.29325083,682.01,681.63,0.496]
[1748495565572,0.29325083,682.01,681.77,0.55852579]
[1748495565771,0.29325083,682.01,681.63,0.496]
[1748495565772,0.29325083,682.01,681.78,0.55852579]
[1748495565970,0.29325083,682.01,681.79,0.55852579]
[1748495566170,0.29325083,682.01,681.8,0.55852579]
[1748495566469,0.29325083,682.01,681.81,0.55852579]
[1748495566670,0.29325083,682.01,681.82,0.55865498]
[1748495566874,0.29325083,682.01,681.83,0.55866493]
[1748495567173,0.29325083,682.01,681.63,0.496]
[1748495567174,0.29325083,682.01,681.84,0.55878261]
[1748495567373,0.29325083,682.01,681.85,0.55878261]
[1748495567573,0.29325083,682.01,681.63,0.496]
[1748495567574,0.29325083,682.01,681.86,0.55879803]
[1748495567874,0.29325083,682.01,681.87,0.55879803]
[1748495568169,0.29325083,682.01,681.88,0.55879803]
[1748495568374,0.29325083,682.01,681.89,0.55879803]
[1748495568573,0.29325083,682.01,681.9,0.55879803]
[1748495568775,0.29325083,682.01,681.91,0.55879803]
[1748495568974,0.29325083,682.01,681.92,0.55879803]
[1748495569271,0.29325083,682.01,681.93,0.55879803]
[1748495569470,0.29325083,682.01,681.63,0.496]
[1748495569675,0.29325083,682.01,681.64,0.55888829]
[1748495569876,0.29325083,682.01,681.63,0.496]
[1748495569877,0.29325083,682.01,681.65,0.55888829]
[1748495570172,0.29325083,682.01,681.66,0.55888829]
[1748495570475,0.29325083,682.01,681.67,0.55888829]
[1748495570772,0.29325083,682.01,681.63,0.496]
[1748495570975,0.29325083,682.01,681.64,0.55891072]
[1748495571173,0.29325083,682.01,681.65,0.55891072]
[1748495571376,0.29325083,682.01,681.66,0.55891072]
[1748495571677,0.29325083,682.01,681.67,0.55891072]
[1748495571977,0.29325083,682.01,681.68,0.55891072]
[1748495572176,0.29325083,682.01,681.69,0.55891072]
[1748495572475,0.29325083,682.01,681.63,0.496]
[1748495572476,0.29325083,682.01,681.7,0.55891072]
[1748495572671,0.29325083,682.01,681.63,0.496]
[1748495572672,0.29325083,682.01,681.71,0.55901363]
[1748495572876,0.29325083,682.01,681.63,0.496]
[1748495573074,0.29325083,682.01,681.64,0.5590071]
[1748495573273,0.29325083,682.01,681.65,0.5590071]
[1748495573472,0.29325083,682.01,681.66,0.5590071]
[1748495573673,0.29325083,682.01,681.67,0.55905704]
[1748495573871,0.29325083,682.01,681.63,0.496]
[1748495573872,0.29325083,682.01,681.68,0.55905704]
[1748495574072,0.29325083,682.01,681.69,0.55905704]
[1748495574271,0.29325083,682.01,681.63,0.496]
[1748495574272,0.29325083,682.01,681.7,0.55909151]
[1748495574476,0.29325083,682.01,681.71,0.55909151]
[1748495574674,0.29325083,682.01,681.72,0.5590879]
[1748495574974,0.29325083,682.01,681.63,0.496]
[1748495574975,0.29325083,682.01,681.73,0.5590879]
[1748495575174,0.29325083,682.01,681.74,0.5590879]
[1748495575373,0.29325083,682.01,681.75,0.5590879]
[1748495575576,0.29325083,682.01,681.76,0.55918154]
[1748495575775,0.29325083,682.01,681.77,0.55918154]
[1748495576079,0.29325083,682.01,681.63,0.496]
[1748495576379,0.29325083,682.01,681.64,0.55918103]
[1748495576579,0.29325083,682.01,681.65,0.55918103]
[1748495576877,0.29325083,682.01,681.66,0.55918103]
[1748495577178,0.29325083,682.01,681.67,0.55918103]
[1748495577375,0.29325083,682.01,681.68,0.55936007]
[1748495577576,0.29325083,682.01,681.63,0.496]
[1748495577577,0.29325083,682.01,681.69,0.55936007]
[1748495577777,0.29325083,682.01,681.7,0.55936007]
[1748495577977,0.29325083,682.01,681.71,0.55936007]
[1748495578175,0.29325083,682.01,681.72,0.55936007]
[1748495578375,0.29325083,682.01,681.73,0.55936007]
[1748495578677,0.29325083,682.01,681.74,0.55936007]
[1748495578876,0.29325083,682.01,681.75,0.55942696]
[1748495579077,0.29325083,682.01,681.63,0.496]
[1748495579277,0.29325083,682.01,681.64,0.55941321]
[1748495579582,0.29325083,682.01,681.65,0.55941321]
[1748495579780,0.29325083,682.01,681.66,0.55941329]
[1748495580080,0.29325083,682.01,681.67,0.55941329]
[1748495580276,0.29325083,682.01,681.68,0.55941329]
[1748495580577,0.29325083,682.01,681.69,0.55942737]
[1748495580778,0.29325083,682.01,681.7,0.55942737]
[1748495581082,0.29325083,682.01,681.63,0.496]
[1748495581282,0.29325083,682.01,681.64,0.55942738]
[1748495581584,0.29325083,682.01,681.63,0.496]
[1748495581585,0.29325083,682.01,681.65,0.55942738]
[1748495581783,0.29325083,682.01,681.66,0.55942738]
[1748495581985,0.29325083,682.01,681.67,0.55946668]
[1748495582185,0.29325083,682.01,681.68,0.55947365]
[1748495582381,0.29325083,682.01,681.69,0.55947365]
[1748495582579,0.29325083,682.01,681.7,0.55947365]
[1748495582885,0.29325083,682.01,681.71,0.55948904]
[1748495583079,0.29325083,682.01,681.72,0.55948904]
[1748495583280,0.29325083,682.01,681.73,0.55948904]
[1748495583481,0.29325083,682.01,681.74,0.55948904]
[1748495583678,0.29325083,682.01,681.75,0.55948904]
[1748495583880,0.29325083,682.01,681.76,0.55948904]
[1748495584080,0.29325083,682.01,681.77,0.55946655]
[1748495584380,0.29325083,682.01,681.78,0.55946655]
[1748495584583,0.29325083,682.01,681.79,0.55946655]
[1748495584779,0.29325083,682.01,681.8,0.55946655]
[1748495584979,0.29325083,682.01,681.81,0.55946655]
[1748495585184,0.29325083,682.01,681.82,0.55946655]
[1748495585483,0.29325083,682.01,681.83,0.55946655]
[1748495585684,0.29325083,682.01,681.84,0.55946655]
[1748495585879,0.29325083,682.01,681.85,0.55946655]
[1748495586083,0.29325083,682.01,681.86,0.55946655]
[1748495586281,0.29325083,682.01,681.87,0.55946655]
[1748495586485,0.29325083,682.01,681.88,0.55949162]
[1748495587281,0.29325083,682.01,681.63,0.496]
[1748495587282,0.29325083,682.01,681.89,0.55949162]
[1748495587488,0.29325083,682.01,681.9,0.55949162]
[1748495587786,0.29325083,682.01,681.91,0.55941019]
[1748495587981,0.29325083,682.01,681.63,0.496]
[1748495588182,0.29325083,682.01,681.64,0.55941019]
[1748495588387,0.29325083,682.01,681.65,0.55941019]
[1748495588681,0.29325083,682.01,681.66,0.55941019]
[1748495588886,0.29325083,682.01,681.67,0.55941019]
[1748495589086,0.29325083,682.01,681.63,0.496]
[1748495589285,0.29325083,682.01,681.64,0.55927653]
[1748495589487,0.29325083,682.01,681.65,0.55927653]
[1748495589686,0.29325083,682.01,681.63,0.496]
[1748495589687,0.29325083,682.01,681.66,0.55927653]
[1748495589987,0.29325083,682.01,681.67,0.55927653]
[1748495590190,0.29325083,682.01,681.68,0.55927653]
[1748495590387,0.29325083,682.01,681.69,0.55921826]
[1748495590687,0.29325083,682.01,681.7,0.55921832]
[1748495590889,0.29325083,682.01,681.71,0.55921832]
[1748495591083,0.29325083,682.01,681.72,0.55921832]
[1748495591288,0.29325083,682.01,681.73,0.55916702]
[1748495591589,0.29325083,682.01,681.74,0.55916702]
[1748495591791,0.29325083,682.01,681.63,0.496]
[1748495592088,0.29325083,682.01,681.64,0.55919419]
[1748495592289,0.29325083,682.01,681.65,0.55909049]
[1748495592484,0.29325083,682.01,681.66,0.55909049]
[1748495592685,0.29325083,682.01,681.67,0.55909049]
[1748495592884,0.29325083,682.01,681.68,0.55909049]
[1748495593083,0.29325083,682.01,681.69,0.55909049]
[1748495593382,0.29325083,682.01,681.7,0.55909049]
[1748495593587,0.29325083,682.01,681.71,0.5590673]
[1748495593785,0.29325083,682.01,681.72,0.5590673]
[1748495593986,0.29325083,682.01,681.73,0.55909494]
[1748495594188,0.29325083,682.01,681.74,0.55909494]
[1748495594488,0.29325083,682.01,681.75,0.55902633]
[1748495594683,0.29325083,682.01,681.76,0.55902633]
[1748495594886,0.29325083,682.01,681.77,0.55904336]
[1748495595088,0.29325083,682.01,681.78,0.55904336]
[1748495595285,0.29325083,682.01,681.63,0.496]
[1748495595488,0.29325083,682.01,681.64,0.55898163]
[1748495595690,0.29325083,682.01,681.65,0.55899281]
[1748495595991,0.29325083,682.01,681.63,0.496]
[1748495596191,0.29325083,682.01,681.62,0.382]
[1748495597191,0.29325083,682.01,679.97,0.25535287]
[1748495597392,0.29325083,682.01,679.98,0.55632843]
[1748495597594,0.29325083,682.01,679.99,0.55632843]
[1748495597795,0.29325083,682.01,680.0,0.55628968]
[1748495597995,0.29325083,682.01,680.01,0.55628968]
[1748495598194,0.29325083,682.01,680.02,0.55628968]
[1748495598394,0.29325083,682.01,680.03,0.55628968]
[1748495598596,0.29325083,682.01,680.04,0.55536351]
[1748495598796,0.29325083,682.01,680.05,0.55536351]
[1748495599107,0.29325083,682.01,680.06,0.55536351]
[1748495599296,0.29325083,682.01,680.07,0.55536351]
[1748495599597,0.29325083,682.01,680.08,0.55536351]
[1748495599791,0.29325083,682.01,680.06,0.543]
[1748495599989,0.29325083,682.01,680.07,0.55455657]
[1748495600194,0.29325083,682.01,680.06,0.543]
[1748495600195,0.29325083,682.01,680.08,0.55455657]
[1748495600394,0.29325083,682.01,680.09,0.55455657]
[1748495600596,0.29325083,682.01,680.1,0.55455657]
[1748495600794,0.29325083,682.01,680.11,0.55455657]
[1748495600996,0.29325083,682.01,680.12,0.55455657]
[1748495601294,0.29325083,682.01,680.13,0.55330881]
[1748495601494,0.29325083,682.01,680.14,0.55330881]
[1748495601694,0.29325083,682.01,680.15,0.55330881]
[1748495601894,0.29325083,682.01,680.16,0.55330881]
[1748495602198,0.29325083,682.01,680.17,0.55330881]
[1748495602394,0.29325083,682.01,680.18,0.55330881]
[1748495602699,0.29325083,682.01,680.19,0.55271951]
[1748495602995,0.29325083,682.01,680.2,0.55271951]
[1748495603295,0.29325083,682.01,680.21,0.55271951]
[1748495603495,0.29325083,682.01,680.22,0.55271951]
[1748495603794,0.29325083,682.01,680.23,0.55271951]
[1748495603998,0.29325083,682.01,680.24,0.55271951]
[1748495604199,0.29325083,682.01,680.25,0.55271951]
[1748495604399,0.29325083,682.01,680.26,0.55185862]
[1748495604600,0.29325083,682.01,680.27,0.55185862]
[1748495604801,0.29325083,682.01,680.28,0.55185891]
[1748495605001,0.29325083,682.01,680.06,0.543]
[1748495605002,0.29325083,682.01,680.29,0.55180787]
[1748495605201,0.29325083,682.01,680.3,0.55180787]
[1748495605398,0.29325083,682.01,680.31,0.55146612]
[1748495605604,0.29325083,682.01,680.32,0.55146612]
[1748495605801,0.29325083,682.01,680.06,0.543]
[1748495606002,0.29325083,682.01,680.07,0.55141439]
[1748495606304,0.29325083,682.01,680.08,0.55141439]
[1748495606504,0.29325083,682.01,680.09,0.55141439]
[1748495606699,0.29325083,682.01,680.1,0.55141439]
[1748495607002,0.29325083,682.01,680.11,0.55141439]
[1748495607203,0.29325083,682.01,680.06,0.543]
[1748495607204,0.29325083,682.01,680.12,0.5507884]
[1748495607405,0.29325083,682.01,680.13,0.5507884]
[1748495607704,0.29325083,682.01,680.14,0.5507884]
[1748495607903,0.29325083,682.01,680.06,0.543]
[1748495608104,0.29325083,682.01,680.07,0.55074036]
[1748495608403,0.29325083,682.01,680.08,0.55074036]
[1748495608698,0.29325083,682.01,680.09,0.55074036]
[1748495608898,0.29325083,682.01,680.1,0.55074036]
[1748495609102,0.29325083,682.01,680.11,0.55074036]
[1748495609303,0.29325083,682.01,680.12,0.55074036]
[1748495609502,0.29325083,682.01,680.13,0.55074036]
[1748495609705,0.29325083,682.01,680.14,0.55074036]
[1748495609903,0.29325083,682.01,680.15,0.55074036]
[1748495610198,0.29325083,682.01,680.16,0.55074036]
[1748495610403,0.29325083,682.01,680.17,0.55074036]
[1748495610599,0.29325083,682.01,680.06,0.543]
[1748495610800,0.29325083,682.01,680.07,0.54995712]
[1748495611002,0.29325083,682.01,680.08,0.54995712]
[1748495611199,0.29325083,682.01,680.09,0.91912592]
[1748495611399,0.29325083,682.01,680.1,1.46889237]
[1748495611599,0.29325083,682.01,680.11,1.46889237]
[1748495611802,0.29325083,682.01,680.12,1.46889237]
[1748495612003,0.29325083,682.01,680.13,1.46889237]
[1748495612199,0.29325083,682.01,680.14,1.46882744]
[1748495612400,0.29325083,682.01,680.06,0.543]
[1748495612599,0.29325083,682.01,680.07,1.46974411]
[1748495612901,0.29325083,682.01,680.08,1.46974411]
[1748495613101,0.29325083,682.01,680.09,1.46974411]
[1748495613300,0.29325083,682.01,680.06,0.543]
[1748495613501,0.29325083,682.01,680.07,1.46941218]
[1748495613709,0.29325083,682.01,680.08,1.46941218]
[1748495613902,0.29325083,682.01,680.09,1.46941218]
[1748495614102,0.29325083,682.01,680.06,0.543]
[1748495614103,0.29325083,682.01,680.1,1.46941218]
[1748495614306,0.29325083,682.01,680.11,1.46941218]
[1748495614507,0.29325083,682.01,680.12,1.46941218]
[1748495614801,0.29325083,682.01,680.06,0.543]
[1748495615006,0.29325083,682.01,680.07,1.46892516]
[1748495615306,0.29325083,682.01,680.08,1.46892516]
[1748495615506,0.29325083,682.01,680.09,1.46892516]
[1748495615706,0.29325083,682.01,680.1,1.46892516]
[1748495615901,0.29325083,682.01,680.11,0.5506891]
[1748495616107,0.29325083,682.01,680.12,1.46866187]
[1748495616305,0.29325083,682.01,680.13,1.46859932]
[1748495616506,0.29325083,682.01,680.14,1.46859932]
[1748495616704,0.29325083,682.01,680.15,1.46859932]
[1748495616904,0.29325083,682.01,680.16,1.46859932]
[1748495617204,0.29325083,682.01,680.17,1.46859932]
[1748495617406,0.29325083,682.01,680.16,0.452]
[1748495617407,0.29325083,682.01,680.18,1.46859932]
[1748495617601,0.29325083,682.01,680.19,1.46859932]
[1748495617803,0.29325083,682.01,680.2,1.46859932]
[1748495618002,0.29325083,682.01,680.21,1.46859932]
[1748495618204,0.29325083,682.01,680.22,1.46859932]
[1748495618504,0.29325083,682.01,680.23,1.46859932]
[1748495618704,0.29325083,682.01,680.24,0.91776872]
[1748495618904,0.29325083,682.01,680.25,1.46817874]
[1748495619203,0.29325083,682.01,680.16,0.452]
[1748495619709,0.29325083,682.01,680.17,1.4681]
[1748495619909,0.29325083,682.01,680.18,1.4681]
[1748495620110,0.29325083,682.01,680.19,1.4681]
[1748495620312,0.29325083,682.01,680.2,0.55038046]
[1748495620511,0.29325083,682.01,680.21,1.46810863]
[1748495620706,0.29325083,682.01,680.16,0.452]
[1748495620707,0.29325083,682.01,680.22,1.46810863]
[1748495621012,0.29325083,682.01,680.23,1.46814155]
[1748495621211,0.29325083,682.01,680.24,1.46814155]
[1748495621410,0.29325083,682.01,680.25,1.46814155]
[1748495621611,0.29325083,682.01,680.26,1.46814155]
[1748495621810,0.29325083,682.01,680.27,1.46814369]
[1748495622012,0.29325083,682.01,680.28,1.46814369]
[1748495622212,0.29325083,682.01,680.16,0.452]
[1748495622213,0.29325083,682.01,680.29,1.46812827]
[1748495622414,0.29325083,682.01,680.16,0.452]
[1748495622618,0.29325083,682.01,680.17,1.46811507]
[1748495622814,0.29325083,682.01,680.18,0.5503778]
[1748495623113,0.29325083,682.01,680.16,0.452]
[1748495623114,0.29325083,682.01,680.19,1.46809493]
[1748495623314,0.29325083,682.01,680.16,0.452]
[1748495623315,0.29325083,682.01,680.2,1.46809493]
[1748495623515,0.29325083,682.01,680.16,0.452]
[1748495623516,0.29325083,682.01,680.21,1.46809493]
[1748495623714,0.29325083,682.01,680.22,1.46809493]
[1748495624009,0.29325083,682.01,680.23,1.46808273]
[1748495624211,0.29325083,682.01,680.16,0.452]
[1748495624212,0.29325083,682.01,680.24,1.46808457]
[1748495624409,0.29325083,682.01,680.16,0.452]
[1748495624711,0.29325083,682.01,680.17,1.46808856]
[1748495624913,0.29325083,682.01,680.18,1.46808856]
[1748495625117,0.29325083,682.01,680.19,1.46808856]
[1748495625413,0.29325083,682.01,680.2,1.46808856]
[1748495625609,0.29325083,682.01,680.21,1.46808856]
[1748495625807,0.29325083,682.01,680.16,0.452]
[1748495625808,0.29325083,682.01,680.22,1.46808856]
[1748495626010,0.29325083,682.01,680.23,1.46807903]
[1748495626310,0.29325083,682.01,680.16,0.452]
[1748495626515,0.29325083,682.01,680.17,1.46812193]
[1748495626715,0.29325083,682.01,680.18,1.46812193]
[1748495627016,0.29325083,682.01,680.19,1.46812193]
[1748495627216,0.29325083,682.01,680.2,1.46812193]
[1748495627412,0.29325083,682.01,680.21,0.55038952]
[1748495627716,0.29325083,682.01,680.22,1.46821298]
[1748495627914,0.29325083,682.01,680.23,1.46821298]
[1748495628117,0.29325083,682.01,680.24,1.46821428]
[1748495628312,0.29325083,682.01,680.16,0.452]
[1748495628313,0.29325083,682.01,680.25,1.46821428]
[1748495628514,0.29325083,682.01,680.26,1.46821428]
[1748495628718,0.29325083,682.01,680.27,1.46821428]
[1748495628913,0.29325083,682.01,680.28,1.46821072]
[1748495629117,0.29325083,682.01,680.29,1.46821072]
[1748495629316,0.29325083,682.01,680.3,1.46821072]
[1748495629518,0.29325083,682.01,680.31,1.46821072]
[1748495629715,0.29325083,682.01,680.32,1.46821072]
[1748495630017,0.29325083,682.01,680.33,1.46826347]
[1748495630217,0.29325083,682.01,680.16,0.452]
[1748495630415,0.29325083,682.01,680.17,1.46846904]
[1748495630618,0.29325083,682.01,680.16,0.452]
[1748495630619,0.29325083,682.01,680.18,1.46863939]
[1748495630820,0.29325083,682.01,680.19,1.46872652]
[1748495631015,0.29325083,682.01,680.2,1.46872652]
[1748495631318,0.29325083,682.01,680.21,0.91812056]
[1748495631516,0.29325083,682.01,680.22,1.46875855]
[1748495631715,0.29325083,682.01,679.09,0.46415888]
[1748495631716,0.29325083,682.01,680.23,1.46875855]
[1748495631919,0.29325083,682.01,680.24,0.91814344]
[1748495632215,0.29325083,682.01,680.25,1.46887115]
[1748495632414,0.29325083,682.01,680.26,1.46887115]
[1748495632620,0.29325083,682.01,680.27,1.46886582]
[1748495632821,0.29325083,682.01,680.24,0.427]
[1748495633122,0.29325083,682.01,680.25,1.46900861]
[1748495633322,0.29325083,682.01,680.26,1.46900861]
[1748495633618,0.29325083,682.01,680.27,1.46900861]
[1748495633822,0.29325083,682.01,680.28,1.46907049]
[1748495634018,0.29325083,682.01,680.29,1.46906225]
[1748495634223,0.29325083,682.01,680.3,1.46917259]
[1748495634420,0.29325083,682.01,680.31,0.91842507]
[1748495634726,0.29325083,682.01,680.26,0.493]
[1748495634924,0.29325083,682.01,680.27,0.55095304]
[1748495635219,0.29325083,682.01,680.28,0.55095304]
[1748495635424,0.29325083,682.01,680.29,1.4695675]
[1748495635763,0.29325083,682.01,680.3,1.4695675]
[1748495635924,0.29325083,682.01,680.31,1.46991631]
[1748495636224,0.29325083,682.01,680.32,1.47000784]
[1748495636425,0.29325083,682.01,680.33,0.91889014]
[1748495636726,0.29325083,682.01,680.34,1.47000845]
[1748495636925,0.29325083,682.01,680.35,1.47000845]
[1748495637125,0.29325083,682.01,680.36,1.47000845]
[1748495637322,0.29325083,682.01,680.37,1.47000845]
[1748495637527,0.29325083,682.01,680.38,0.91889011]
[1748495637828,0.29325083,682.01,680.39,1.47036743]
[1748495638022,0.29325083,682.01,680.4,1.47096457]
[1748495638228,0.29325083,682.01,680.41,1.4710841]
[1748495638427,0.29325083,682.01,680.42,1.47108394]
[1748495638624,0.29325083,682.01,680.43,1.47108394]
[1748495638927,0.29325083,682.01,680.44,1.47160182]
[1748495639129,0.29325083,682.01,680.45,0.91988608]
[1748495639329,0.29325083,682.01,680.46,0.91988608]
[1748495639529,0.29325083,682.01,680.47,0.91996649]
[1748495639825,0.29325083,682.01,680.26,0.493]
[1748495640029,0.29325083,682.01,680.27,1.47232565]
[1748495640224,0.29325083,682.01,680.28,1.47232565]
[1748495640425,0.29325083,682.01,680.29,1.47232565]
[1748495640625,0.29325083,682.01,680.3,1.47232565]
[1748495640825,0.29325083,682.01,680.31,1.47313799]
[1748495641025,0.29325083,682.01,680.32,1.47313799]
[1748495641225,0.29325083,682.01,680.33,1.4731389]
[1748495641425,0.29325083,682.01,680.34,1.47314083]
[1748495641728,0.29325083,682.01,680.26,0.493]
[1748495641729,0.29325083,682.01,680.35,1.47314083]
[1748495641926,0.29325083,682.01,680.36,1.47314083]
[1748495642130,0.29325083,682.01,680.37,1.47314083]
[1748495642327,0.29325083,682.01,680.38,1.47314083]
[1748495642628,0.29325083,682.01,680.39,0.9208483]
[1748495642832,0.29325083,682.01,680.26,0.493]
[1748495643027,0.29325083,682.01,680.27,1.47399731]
[1748495643232,0.29325083,682.01,680.28,1.47447979]
[1748495643433,0.29325083,682.01,680.29,1.47447979]
[1748495643632,0.29325083,682.01,680.3,1.47447979]
[1748495643928,0.29325083,682.01,680.31,1.47447979]
[1748495644132,0.29325083,682.01,680.32,1.47447979]
[1748495644330,0.29325083,682.01,680.33,1.47577695]
[1748495644532,0.29325083,682.01,680.34,1.4757776]
[1748495644734,0.29325083,682.01,680.35,1.47577749]
[1748495645030,0.29325083,682.01,680.36,1.47577749]
[1748495645230,0.29325083,682.01,680.37,1.47577749]
[1748495645434,0.29325083,682.01,680.38,1.47577749]
[1748495645631,0.29325083,682.01,680.39,1.47676577]
[1748495645836,0.29325083,682.01,680.4,1.47676596]
[1748495646035,0.29325083,682.01,680.26,0.493]
[1748495646036,0.29325083,682.01,680.41,1.47676596]
[1748495646336,0.29325083,682.01,680.26,0.493]
[1748495646536,0.29325083,682.01,680.27,0.92394705]
[1748495646729,0.29325083,682.01,680.28,1.47809832]
[1748495646931,0.29325083,682.01,680.29,1.47809832]
[1748495647231,0.29325083,682.01,680.26,0.493]
[1748495647435,0.29325083,682.01,680.27,1.47902255]
[1748495647635,0.29325083,682.01,680.28,1.47902161]
[1748495647837,0.29325083,682.01,680.29,1.47902294]
[1748495648037,0.29325083,682.01,680.26,0.493]
[1748495648232,0.29325083,682.01,680.27,1.48011686]
[1748495648432,0.29325083,682.01,680.28,1.48011686]
[1748495648732,0.29325083,682.01,680.29,1.48011686]
[1748495648936,0.29325083,682.01,680.3,1.48012467]
[1748495649132,0.29325083,682.01,680.31,1.48012467]
[1748495649333,0.29325083,682.01,680.26,0.493]
[1748495649733,0.29325083,682.01,680.27,0.55544807]
[1748495649937,0.29325083,682.01,680.28,1.48164045]
[1748495650138,0.29325083,682.01,680.29,1.48164045]
[1748495650338,0.29325083,682.01,680.26,0.493]
[1748495650638,0.29325083,682.01,680.27,1.48311048]
[1748495650934,0.29325083,682.01,680.28,1.48311048]
[1748495651135,0.29325083,682.01,680.29,0.92711239]
[1748495651336,0.29325083,682.01,680.3,1.4838061]
[1748495651641,0.29325083,682.01,680.31,1.48380559]
[1748495651940,0.29325083,682.01,680.32,1.48380559]
[1748495652233,0.29325083,682.01,680.26,0.493]
[1748495652234,0.29325083,682.01,680.33,1.48676327]
[1748495652434,0.29325083,682.01,680.34,0.55737867]
[1748495652734,0.29325083,682.01,680.35,1.48676307]
[1748495653033,0.29325083,682.01,680.36,0.55737868]
[1748495653238,0.29325083,682.01,680.37,1.48908159]
[1748495653533,0.29325083,682.01,680.26,0.493]
[1748495653534,0.29325083,682.01,680.38,1.48908128]
[1748495653731,0.29325083,682.01,680.39,1.48908128]
[1748495653934,0.29325083,682.01,680.4,1.48908128]
[1748495654136,0.29325083,682.01,680.41,0.55948605]
[1748495654432,0.29325083,682.01,680.42,0.55948605]
[1748495654635,0.29325083,682.01,680.43,0.55948554]
[1748495654837,0.29325083,682.01,680.44,0.55948554]
[1748495655137,0.29325083,682.01,680.45,0.55948554]
[1748495655439,0.29325083,682.01,680.46,0.55948554]
[1748495655639,0.29325083,682.01,680.26,0.493]
[1748495655640,0.29325083,682.01,680.47,0.55948554]
[1748495655839,0.29325083,682.01,680.48,0.55948554]
[1748495656039,0.29325083,682.01,680.49,0.56183317]